bitfinex/quotes_ETHUSD_20250914
["timestamp","ask_amount","ask_price","bid_price","bid_amount"]
[1757819701985,0.002,4673.5,4673.4,5.36590967]
[1757819702185,0.002,4673.5,4673.4,8.93890967]
[1757819702700,0.002,4673.5,4673.4,9.22930967]
[1757819702882,0.002,4673.5,4673.4,5.65630967]
[1757819703086,0.002,4674.0,4673.4,41.08921383]
[1757819703395,1e-08,4674.0,4673.9,6.03794085]
[1757819703597,1e-08,4674.0,4673.9,42.14164438]
[1757819703773,1e-08,4674.0,4673.9,43.28984438]
[1757819703973,1e-08,4674.0,4673.9,41.37054501]
[1757819705197,1e-08,4674.0,4673.9,41.46416779]
[1757819705387,1e-08,4674.0,4673.9,43.60331962]
[1757819706086,0.002,4675.5,4675.4,2.13885442]
[1757819706401,0.002,4675.5,4675.4,40.46807612]
[1757819706595,0.002,4675.5,4675.4,40.44668758]
[1757819706979,0.7503,4675.5,4675.4,40.44668758]
[1757819707165,0.7503,4675.5,4675.4,41.05102903]
[1757819707900,0.8038,4675.5,4675.4,37.47802903]
[1757819708193,1.2455,4675.5,4675.4,11.05102903]
[1757819710895,1.2455,4675.5,4675.4,7.47802903]
[1757819711202,1.2455,4675.5,4675.4,8.9108772]
[1757819711418,1.2455,4675.5,4675.4,0.20002278]
[1757819711701,2.13894118,4675.3,4674.2,2.13938307]
[1757819711902,0.9369,4675.2,4674.3,2.13935506]
[1757819712108,0.3066,4674.4,4674.2,3.572]
[1757819712294,0.3066,4674.4,4674.3,2.13935776]
[1757819712809,0.3066,4674.4,4674.3,9.04572112]
[1757819713011,0.4952,4674.8,4674.7,2.1391747]
[1757819713186,0.8018,4674.8,4674.7,5.7111747]
[1757819713503,1.2435,4674.8,4674.7,5.7111747]
[1757819715208,1.2435,4674.8,4674.7,5.8175747]
[1757819717218,1.2435,4674.8,4674.7,0.1064]
[1757819717405,1.36785,4674.8,4674.5,3.571]
[1757819717605,0.9243,4674.7,4674.5,3.571]
[1757819717811,0.2993,4674.6,4674.5,5.71026163]
[1757819718121,1.2236,4674.6,4674.5,5.71026163]
[1757819719124,1.2236,4674.6,4674.4,2.13930973]
[1757819719425,0.9243,4674.5,4674.1,3.571]
[1757819719595,0.4636,4674.5,4674.4,2.13931199]
[1757819719792,1.2236,4674.5,4674.4,2.13931199]
[1757819720735,1.2236,4674.5,4674.2,3.571]
[1757819720898,0.2993,4674.5,4674.4,2.13931199]
[1757819721615,1.2236,4674.5,4674.4,2.13931199]
[1757819724230,0.76,4674.5,4674.4,2.13931199]
[1757819724410,0.2993,4674.5,4674.4,2.13931199]
[1757819724932,0.7629,4674.5,4674.4,2.13931199]
[1757819725226,1.2236,4674.5,4674.4,2.13931199]
[1757819725900,1.2236,4674.5,4674.0,0.1064]
[1757819726121,0.9243,4674.4,4674.1,5.7104493]
[1757819726324,0.9243,4674.3,4674.2,2.13940353]
[1757819726524,0.1064,4674.8,4674.6,2.13920024]
[1757819726838,0.1064,4674.8,4674.5,2.13924852]
[1757819727042,0.1064,4674.8,4674.3,3.571]
[1757819727043,0.2993,4674.4,4674.3,3.571]
[1757819727419,1.2236,4674.4,4674.2,3.571]
[1757819727745,0.2993,4674.4,4674.3,2.13935776]
[1757819728846,1.2408,4674.4,4674.2,3.571]
[1757819729045,0.2993,4674.4,4674.3,2.13935776]
[1757819729722,1.2408,4674.4,4674.3,2.13935776]
[1757819729924,1.2408,4674.4,4674.2,5.71039718]
[1757819730152,0.2993,4674.4,4674.3,2.13935776]
[1757819730843,1.2408,4674.4,4674.3,2.13935776]
[1757819731439,1.2408,4674.4,4674.0,0.1064]
[1757819731646,1.2408,4674.4,4674.2,2.13936047]
[1757819731647,0.9415,4674.3,4674.2,2.13936047]
[1757819731955,1.2485,4674.3,4674.2,2.13936047]
[1757819732660,1.2485,4674.3,4674.1,5.71044132]
[1757819732820,0.307,4674.3,4674.2,2.13940353]
[1757819733020,0.307,4674.3,4674.1,3.571]
[1757819733350,0.9415,4674.2,4673.8,0.001]
[1757819733517,0.9415,4674.2,4673.8,2.14057797]
[1757819733721,0.307,4673.9,4673.8,2.14057797]
[1757819734151,1.2485,4673.9,4673.8,2.14057797]
[1757819734318,1.2485,4673.9,4673.8,0.001]
[1757819735053,0.307,4673.9,4673.8,2.14058663]
[1757819735261,0.1064,4674.1,4674.0,2.13949507]
[1757819735622,0.4134,4674.1,4674.0,2.13949507]
[1757819736355,0.1064,4674.1,4674.0,2.13949507]
[1757819736722,0.4134,4674.1,4674.0,2.13949507]
[1757819737927,1.3549,4674.1,4673.8,0.001]
[1757819738252,0.9415,4674.0,4673.8,0.001]
[1757819738759,0.307,4673.9,4673.8,0.001]
[1757819739528,1.2485,4673.9,4673.8,0.001]
[1757819741758,1.2485,4673.9,4673.8,2.14058663]
[1757819741759,0.8012,4673.9,4673.8,2.14058663]
[1757819742340,0.8012,4673.9,4673.8,0.001]
[1757819742644,1.2485,4673.9,4673.8,0.001]
[1757819744469,1.2485,4673.9,4673.8,2.14058663]
[1757819744650,1.2485,4673.9,4673.8,0.001]
[1757819745171,0.1064,4674.1,4673.8,2.14058663]
[1757819745596,0.4942,4674.3,4673.9,2.13953409]
[1757819745868,0.1064,4674.2,4673.8,2.14058322]
[1757819746070,0.3123,4673.9,4673.8,0.001]
[1757819746375,0.4187,4673.9,4673.8,0.001]
[1757819746762,1.3501,4673.9,4673.8,0.001]
[1757819748543,3.38324085,4673.9,4673.8,0.001]
[1757819749372,3.46885756,4673.9,4673.8,0.001]
[1757819751148,4.26085756,4673.9,4673.8,0.001]
[1757819751977,7.83085756,4673.9,4673.8,0.001]
[1757819753950,12.11485756,4673.9,4673.8,0.001]
[1757819754155,12.2342463,4673.9,4673.8,0.001]
[1757819755182,12.11485756,4673.9,4673.8,0.001]
[1757819758974,19.13485756,4673.9,4673.8,0.001]
[1757819762493,21.70303023,4673.9,4673.8,0.001]
[1757819762715,2.076,4672.9,4672.8,1e-08]
[1757819762995,12.74713874,4672.9,4672.8,1e-08]
[1757819763150,13.97443874,4672.9,4672.8,1e-08]
[1757819763357,14.06009469,4672.9,4672.8,1e-08]
[1757819765397,13.86126941,4672.9,4672.8,1e-08]
[1757819768589,13.74195466,4672.9,4672.8,1e-08]
[1757819768953,0.792,4672.6,4672.3,1e-08]
[1757819769157,3.42422772,4672.4,4672.3,1e-08]
[1757819769357,3.73102772,4672.4,4672.3,1e-08]
[1757819769584,5.44352772,4672.4,4672.3,1e-08]
[1757819770292,8.44352772,4672.4,4672.3,1e-08]
[1757819770498,10.69352772,4672.4,4672.3,1e-08]
[1757819770986,10.81259184,4672.4,4672.3,1e-08]
[1757819771889,8.56259184,4672.4,4672.3,1e-08]
[1757819772090,12.01452772,4672.4,4672.3,1e-08]
[1757819772800,7.52302772,4672.4,4672.3,1e-08]
[1757819772962,11.09402772,4672.4,4672.3,1e-08]
[1757819773161,11.55512772,4672.4,4672.3,1e-08]
[1757819773363,12.01452772,4672.4,4672.3,1e-08]
[1757819774208,12.13363398,4672.4,4672.3,1e-08]
[1757819774390,12.01452772,4672.4,4672.3,1e-08]
[1757819775064,12.57326185,4672.4,4672.3,1e-08]
[1757819777167,12.77198095,4672.4,4672.3,1e-08]
[1757819777368,9.20098095,4672.4,4672.3,1e-08]
[1757819777578,11.85157573,4672.4,4672.3,1e-08]
[1757819777779,5.89777573,4672.4,4672.3,0.30920001]
[1757819777978,9.27005822,4672.4,4672.3,0.30920001]
[1757819778183,9.27005822,4672.4,4672.3,1e-08]
[1757819778184,9.46889686,4672.4,4672.3,1e-08]
[1757819778400,10.26089686,4672.4,4672.3,1e-08]
[1757819779378,11.46329686,4672.4,4672.3,1e-08]
[1757819779584,11.92149152,4672.4,4672.3,1e-08]
[1757819780576,11.49199152,4672.4,4672.3,1e-08]
[1757819781510,12.77599152,4672.4,4672.3,1e-08]
[1757819781678,13.20549152,4672.4,4672.3,1e-08]
[1757819782211,12.77599152,4672.4,4672.3,1e-08]
[1757819782390,13.20549152,4672.4,4672.3,1e-08]
[1757819782598,20.22549152,4672.4,4672.3,1e-08]
[1757819783399,19.79599152,4672.4,4672.3,1e-08]
[1757819783594,20.22549152,4672.4,4672.3,1e-08]
[1757819783795,19.79599152,4672.4,4672.3,1e-08]
[1757819784112,2.93245677,4671.9,4671.8,0.001]
[1757819784290,15.36529541,4671.9,4671.8,0.001]
[1757819784486,15.36529541,4671.9,4671.8,0.3102]
[1757819784879,15.83869541,4671.9,4671.8,0.3102]
[1757819785078,12.26769541,4671.9,4671.8,0.3102]
[1757819785279,15.83869541,4671.9,4671.8,0.3102]
[1757819785504,11.47569541,4671.9,4671.8,0.3102]
[1757819785707,15.04669541,4671.9,4671.8,0.3102]
[1757819786379,15.16622956,4671.9,4671.8,0.3102]
[1757819786613,16.25432956,4671.9,4671.8,0.001]
[1757819786910,16.68423448,4671.9,4671.8,0.001]
[1757819787279,17.16103448,4671.9,4671.8,0.001]
[1757819787475,18.90425013,4671.9,4671.8,0.001]
[1757819788910,18.90441046,4671.9,4671.8,0.001]
[1757819790284,18.90451523,4671.9,4671.8,0.001]
[1757819790680,21.90451523,4671.9,4671.8,0.001]
[1757819791887,24.15451523,4671.9,4671.8,0.001]
[1757819792102,9.46668587,4671.4,4671.3,0.001]
[1757819792310,13.81619391,4671.4,4671.3,0.001]
[1757819792519,15.78562101,4671.4,4671.3,0.001]
[1757819792684,16.25902101,4671.4,4671.3,0.001]
[1757819793417,15.49199391,4671.4,4671.3,0.001]
[1757819795188,11.92099391,4671.4,4671.3,0.001]
[1757819795511,15.49199391,4671.4,4671.3,0.001]
[1757819796190,11.49149391,4671.4,4671.3,0.001]
[1757819796396,15.01519391,4671.4,4671.3,0.001]
[1757819796592,15.58992267,4671.4,4671.3,0.001]
[1757819796808,16.06672267,4671.4,4671.3,0.001]
[1757819797003,23.08672267,4671.4,4671.3,0.001]
[1757819798715,19.51572267,4671.4,4671.3,0.001]
[1757819798914,15.56742267,4671.4,4671.3,0.001]
[1757819799087,19.56892267,4671.4,4671.3,0.001]
[1757819799288,20.26299391,4671.4,4671.3,0.001]
[1757819799688,20.83772267,4671.4,4671.3,0.001]
[1757819801421,20.26299391,4671.4,4671.3,0.001]
[1757819801592,22.51299391,4671.4,4671.3,0.001]
[1757819801929,23.08772267,4671.4,4671.3,0.001]
[1757819803296,22.51299391,4671.4,4671.3,0.001]
[1757819804009,21.31059391,4671.4,4671.3,0.001]
[1757819804813,15.48859391,4671.4,4671.3,0.001]
[1757819805006,19.06059391,4671.4,4671.3,0.001]
[1757819805205,19.35669391,4671.4,4671.3,0.001]
[1757819805437,20.26299391,4671.4,4671.3,0.001]
[1757819806026,19.78619391,4671.4,4671.3,0.001]
[1757819806221,15.48859391,4671.4,4671.3,0.001]
[1757819806426,19.06059391,4671.4,4671.3,0.001]
[1757819806624,14.69659391,4671.4,4671.3,0.2932]
[1757819806833,18.26859391,4671.4,4671.3,0.7735]
[1757819807054,18.26859391,4671.4,4671.3,0.2932]
[1757819807535,19.06059391,4671.4,4671.3,0.2932]
[1757819808016,18.60137826,4671.4,4671.3,0.2932]
[1757819808846,18.60137826,4671.4,4671.3,0.001]
[1757819809007,19.79629631,4671.4,4671.3,0.001]
[1757819809207,19.79629932,4671.4,4671.3,0.001]
[1757819809947,19.06129932,4671.4,4671.3,0.001]
[1757819810111,20.28109932,4671.4,4671.3,0.001]
[1757819811510,19.06129932,4671.4,4671.3,0.001]
[1757819811715,21.31129932,4671.4,4671.3,0.001]
[1757819812117,21.31129932,4671.4,4671.3,0.3081]
[1757819812519,15.48929932,4671.4,4671.3,0.3081]
[1757819812829,19.06129932,4671.4,4671.3,0.3081]
[1757819814128,19.06129932,4671.4,4671.3,0.001]
[1757819814914,19.06129932,4671.4,4671.3,0.3081]
[1757819815115,18.60137826,4671.4,4671.3,0.3081]
[1757819815321,17.80937826,4671.4,4671.3,0.7647]
[1757819815628,14.23737826,4671.4,4671.3,1.0568]
[1757819815829,17.80937826,4671.4,4671.3,0.7647]
[1757819816441,17.80937826,4671.4,4671.3,0.3081]
[1757819817444,18.27000974,4671.4,4671.3,0.3081]
[1757819817652,18.57670974,4671.4,4671.3,0.001]
[1757819817862,19.00420974,4671.4,4671.3,0.001]
[1757819818049,18.27000974,4671.4,4671.3,0.001]
[1757819819040,18.27046568,4671.4,4671.3,0.3081]
[1757819819923,18.27046568,4671.4,4671.3,0.7647]
[1757819820541,14.69846568,4671.4,4671.3,0.7647]
[1757819820748,12.9538342,4671.4,4671.3,0.7647]
[1757819821054,12.9538342,4671.4,4671.3,1.0568]
[1757819821055,16.0524342,4671.4,4671.3,1.0568]
[1757819822477,10.71078373,4671.4,4671.3,1.0568]
[1757819822627,0.002,4671.8,4671.3,1.0568]
[1757819822830,0.002,4671.8,4671.4,0.7487]
[1757819823262,0.1064,4671.5,4671.3,0.001]
[1757819823560,0.1064,4671.5,4671.4,0.52127581]
[1757819823768,0.1064,4671.5,4671.4,3.41066168]
[1757819823940,3.145,4671.5,4671.4,3.43206853]
[1757819824270,3.145,4671.5,4671.4,3.41066168]
[1757819825875,0.002,4671.8,4671.7,2.1405484]
[1757819826033,3.573,4671.8,4671.7,2.48170082]
[1757819826342,3.573,4671.8,4671.7,3.53750082]
[1757819827174,3.573,4671.8,4671.7,1.39695242]
[1757819827659,3.573,4671.8,4671.7,0.7637]
[1757819827863,5.71350259,4671.8,4671.7,0.3071]
[1757819828441,3.8797,4671.8,4671.3,0.001]
[1757819828672,2.14059422,4671.6,4671.3,0.001]
[1757819828869,3.571,4671.5,4671.3,0.001]
[1757819829077,2.14068587,4671.4,4671.3,0.001]
[1757819829542,2.14068587,4671.4,4671.3,0.3081]
[1757819829738,3.571,4671.5,4671.3,0.7647]
[1757819829941,3.571,4671.5,4671.3,1.0568]
[1757819830174,1.643,4671.7,4671.4,0.7487]
[1757819830360,3.571,4671.6,4671.4,0.7487]
[1757819830675,3.571,4671.6,4671.5,1.0558]
[1757819830855,3.571,4671.6,4671.5,1.37770309]
[1757819831047,1.643,4671.7,4671.5,1.37770309]
[1757819831239,1.643,4671.7,4671.5,0.3071]
[1757819831240,3.572,4671.6,4671.5,0.3071]
[1757819831755,3.572,4671.6,4671.5,3.19644005]
[1757819832077,3.572,4671.6,4671.5,1.0558]
[1757819832845,2.14064325,4671.5,4671.3,0.001]
[1757819833051,5.82008587,4671.4,4671.3,0.001]
[1757819833252,5.82108587,4671.4,4671.3,0.001]
[1757819833982,5.82108587,4671.4,4671.3,0.3081]
[1757819833983,3.6804,4671.4,4671.3,0.3081]
[1757819837463,5.82108587,4671.4,4671.3,0.3081]
[1757819837665,5.82108587,4671.4,4671.3,0.001]
[1757819839284,3.6804,4671.4,4671.3,0.001]
[1757819839499,3.6804,4671.4,4671.3,0.317]
[1757819840656,3.6804,4671.4,4671.3,0.51647387]
[1757819842188,3.571,4671.4,4671.3,1.31571124]
[1757819842359,3.571,4671.4,4671.3,0.83071124]
[1757819842554,3.571,4671.4,4671.3,0.20047387]
[1757819845919,0.1064,4671.5,4671.3,1.29357387]
[1757819846079,0.002,4671.8,4671.3,1.29357387]
[1757819846080,0.002,4671.8,4671.4,2.34015974]
[1757819846282,0.002,4671.8,4671.5,0.19947387]
[1757819846283,3.574,4671.8,4671.5,0.19947387]
[1757819846582,3.574,4671.8,4671.7,0.316]
[1757819846768,3.574,4671.8,4671.7,0.51547387]
[1757819847393,3.8693,4671.8,4671.7,0.19947387]
[1757819847584,6.91240259,4671.8,4671.7,0.19947387]
[1757819847782,2.14061144,4671.6,4671.3,0.001]
[1757819847987,5.22,4671.5,4671.3,0.001]
[1757819848173,2.43598587,4671.4,4671.3,0.001]
[1757819848376,3.33858587,4671.4,4671.3,0.001]
[1757819851099,2.89888587,4671.4,4671.3,0.001]
[1757819851284,6.91458587,4671.4,4671.3,0.001]
[1757819851488,2.43598587,4671.4,4671.3,0.001]
[1757819851891,6.01298587,4671.4,4671.3,0.001]
[1757819852087,6.30508587,4671.4,4671.3,0.001]
[1757819852288,6.74478587,4671.4,4671.3,0.001]
[1757819852598,7.20768587,4671.4,4671.3,0.001]
[1757819853879,7.20668587,4671.4,4671.3,0.001]
[1757819856709,3.63068587,4671.4,4671.3,0.001]
[1757819856914,7.20568587,4671.4,4671.3,0.001]
[1757819860626,7.32548762,4671.4,4671.3,0.001]
[1757819860907,10.32548762,4671.4,4671.3,0.001]
[1757819861117,12.40148762,4671.4,4671.3,0.001]
[1757819865678,19.42148762,4671.4,4671.3,0.001]
[1757819867010,17.42958762,4671.4,4671.3,0.001]
[1757819869131,16.02678587,4671.4,4671.3,0.2934]
[1757819869310,16.02678587,4671.4,4671.3,0.001]
[1757819869506,16.32368587,4671.4,4671.3,0.001]
[1757819869753,16.02678587,4671.4,4671.3,0.001]
[1757819870039,16.02678587,4671.4,4671.3,0.2934]
[1757819870209,16.02578587,4671.4,4671.3,0.2934]
[1757819874615,16.02478587,4671.4,4671.3,0.7699]
[1757819875027,16.02478587,4671.4,4671.3,0.2934]
[1757819876230,12.73268587,4671.4,4671.3,0.2934]
[1757819880659,12.73268587,4671.4,4671.3,0.001]
[1757819881376,13.99118587,4671.4,4671.3,0.001]
[1757819882046,14.07684292,4671.4,4671.3,0.001]
[1757819882477,13.57714292,4671.4,4671.3,0.001]
[1757819882863,12.81834292,4671.4,4671.3,0.001]
[1757819883440,12.81834292,4671.4,4671.3,0.2924]
[1757819883441,3.571,4671.4,4671.3,0.2924]
[1757819884375,5.71168587,4671.4,4671.3,0.2924]
[1757819884784,1.643,4671.5,4671.3,0.7689]
[1757819884946,1.7494,4671.5,4671.4,0.7686]
[1757819885280,3.6774,4671.5,4671.4,3.20068587]
[1757819885483,0.002,4671.8,4671.4,3.20068587]
[1757819885484,0.002,4671.8,4671.5,2.14062483]
[1757819885642,3.571,4671.7,4671.6,0.02140594]
[1757819885843,3.571,4671.7,4671.6,1.06]
[1757819886058,3.571,4671.7,4671.6,0.2914]
[1757819886461,2.14065084,4671.5,4671.3,0.001]
[1757819886779,3.571,4671.4,4671.3,0.001]
[1757819887390,6.00328587,4671.4,4671.3,0.001]
[1757819887563,6.47048587,4671.4,4671.3,0.001]
[1757819888081,6.97018587,4671.4,4671.3,0.20101125]
[1757819888689,6.97018587,4671.4,4671.3,0.20100705]
[1757819889763,6.47048587,4671.4,4671.3,0.20100705]
[1757819890097,6.00328587,4671.4,4671.3,0.20100705]
[1757819890300,6.47048587,4671.4,4671.3,0.20100705]
[1757819890464,5.71168587,4671.4,4671.3,0.20100705]
[1757819890664,5.71168587,4671.4,4671.3,0.49240705]
[1757819891098,0.002,4671.8,4671.3,0.96890705]
[1757819891306,0.002,4671.8,4671.4,0.20000705]
[1757819891307,2.14064005,4671.5,4671.4,0.20000705]
[1757819891501,2.14064005,4671.5,4671.3,0.001]
[1757819891502,6.98414005,4671.5,4671.3,0.001]
[1757819891703,3.10758587,4671.4,4671.3,0.001]
[1757819892197,3.39918587,4671.4,4671.3,0.001]
[1757819892378,5.04218587,4671.4,4671.3,0.001]
[1757819894195,4.54248587,4671.4,4671.3,0.001]
[1757819896723,5.01948587,4671.4,4671.3,0.001]
[1757819899491,16.4433605,4671.4,4671.3,0.001]
[1757819899794,16.64313879,4671.4,4671.3,0.001]
[1757819899996,16.72881162,4671.4,4671.3,0.001]
[1757819900791,17.52081162,4671.4,4671.3,0.001]
[1757819902095,17.52075024,4671.4,4671.3,0.001]
[1757819903102,21.10375024,4671.4,4671.3,0.001]
[1757819903305,20.90403333,4671.4,4671.3,0.001]
[1757819905526,21.10361962,4671.4,4671.3,0.001]
[1757819905847,21.5634203,4671.4,4671.3,0.001]
[1757819914136,21.10361962,4671.4,4671.3,0.001]
[1757819915267,21.56266038,4671.4,4671.3,0.001]
[1757819921264,23.81466038,4671.4,4671.3,0.001]
[1757819922652,24.38912577,4671.4,4671.3,0.001]
[1757819926478,24.38920392,4671.4,4671.3,0.001]
[1757819927047,23.81430259,4671.4,4671.3,0.001]
[1757819930189,23.81461219,4671.4,4671.3,0.001]
[1757819930868,7.328,4671.2,4670.8,0.001]
[1757819931067,4.21691502,4670.9,4670.8,0.001]
[1757819931282,11.11032775,4670.9,4670.8,0.001]
[1757819931478,11.56936851,4670.9,4670.8,0.001]
[1757819931670,11.86146851,4670.9,4670.8,0.001]
[1757819931868,14.85086851,4670.9,4670.8,0.001]
[1757819932195,14.85085546,4670.9,4670.8,0.001]
[1757819932686,15.30965546,4670.9,4670.8,0.001]
[1757819933794,15.30865546,4670.9,4670.8,0.001]
[1757819934200,15.88360258,4670.9,4670.8,0.001]
[1757819934497,22.90260258,4670.9,4670.8,0.001]
[1757819937097,22.44380258,4670.9,4670.8,0.001]
[1757819937489,22.44380258,4670.9,4670.8,1.0414]
[1757819937490,17.6324147,4670.9,4670.8,1.0414]
[1757819937690,18.09232969,4670.9,4670.8,0.7493]
[1757819937884,18.09233103,4670.9,4670.8,0.7493]
[1757819938473,18.09233103,4670.9,4670.8,0.2981]
[1757819938771,18.09233103,4670.9,4670.8,1.0414]
[1757819939373,17.63241604,4670.9,4670.8,1.0414]
[1757819940608,16.05531604,4670.9,4670.8,1.0414]
[1757819940902,15.85568308,4670.9,4670.8,1.0414]
[1757819942522,15.85568308,4670.9,4670.8,0.2981]
[1757819942814,15.85568308,4670.9,4670.8,1.0414]
[1757819944719,12.27968308,4670.9,4670.8,1.0414]
[1757819945109,15.85468308,4670.9,4670.8,1.0414]
[1757819946011,12.73491502,4670.9,4670.8,1.0414]
[1757819946598,7.019,4670.9,4670.8,1.0414]
[1757819946916,10.594,4670.9,4670.8,1.0414]
[1757819947133,3.577,4670.9,4670.8,1.0414]
[1757819947412,3.6834,4670.9,4670.8,1.36179492]
[1757819947792,1.643,4671.4,4670.8,1.36179492]
[1757819948016,3.577,4671.3,4670.9,2.90562295]
[1757819948193,3.577,4671.3,4671.2,0.2971]
[1757819948400,3.577,4671.3,4671.2,1.0404]
[1757819948632,1.643,4671.4,4671.2,1.39281169]
[1757819948822,3.356,4671.4,4671.3,2.90543901]
[1757819949023,3.356,4671.4,4671.3,3.20253901]
[1757819949566,0.1084,4671.8,4671.4,2.14066453]
[1757819949727,3.577,4671.7,4671.4,0.7433]
[1757819949923,3.577,4671.7,4671.6,0.2971]
[1757819950123,3.577,4671.7,4671.6,1.37129394]
[1757819951458,3.577,4671.7,4671.6,0.2971]
[1757819951842,5.7175484,4671.7,4671.6,0.2971]
[1757819952025,3.577,4671.7,4671.6,0.2971]
[1757819952247,3.577,4671.7,4671.6,1.0404]
[1757819952894,3.6834,4671.7,4671.6,1.0404]
[1757819953381,0.1064,4671.7,4671.6,1.0404]
[1757819953582,3.577,4671.7,4671.6,1.35851312]
[1757819954287,3.577,4671.7,4671.6,1.0404]
[1757819955689,0.002,4671.8,4671.6,1.0404]
[1757819955888,0.002,4671.8,4671.7,0.80040548]
[1757819956183,3.578,4671.8,4671.7,0.779]
[1757819956365,3.578,4671.8,4671.7,1.0773]
[1757819956564,3.578,4671.8,4671.7,0.7852]
[1757819958071,3.578,4671.8,4671.7,1.0773]
[1757819958470,0.002,4671.8,4671.7,1.40974187]
[1757819958687,3.577,4671.8,4671.7,3.3242484]
[1757819958887,3.577,4671.8,4671.7,3.34565388]
[1757819959389,0.002,4671.8,4671.7,3.34565388]
[1757819959959,0.002,4671.8,4671.7,4.13765388]
[1757819960160,0.002,4671.8,4671.7,7.1162484]
[1757819960393,0.002,4671.8,4671.7,8.04193529]
[1757819969498,0.002,4671.8,4671.7,8.14870793]
[1757819970334,0.002,4671.8,4671.7,11.72170793]
[1757819970634,0.002,4671.8,4671.7,11.32283529]
[1757819971520,0.002,4671.8,4671.7,10.83593529]
[1757819977442,0.002,4671.8,4671.7,11.61493529]
[1757819977624,0.002,4671.8,4671.7,11.32283529]
[1757819977939,0.002,4671.8,4671.7,10.83393529]
[1757819985525,0.002,4671.8,4671.7,7.26293529]
[1757819985726,0.002,4671.8,4671.7,10.83393529]
[1757819985927,0.002,4671.8,4671.7,11.29743529]
[1757819986127,0.002,4671.8,4671.7,8.01853529]
[1757819986331,0.002,4671.8,4671.7,11.48313529]
[1757819986662,0.002,4671.8,4671.7,11.58953529]
[1757819987961,0.002,4671.8,4671.7,41.58953529]
[1757819988132,0.002,4671.8,4671.7,43.11904455]
[1757819988331,0.002,4671.8,4671.7,41.58953529]
[1757819989859,0.002,4671.8,4671.7,40.83393529]
[1757819990057,0.002,4671.8,4671.7,42.37194852]
[1757819990355,0.002,4671.8,4671.7,40.83393529]
[1757819992860,0.002,4671.8,4671.7,10.83393529]
[1757819993030,0.002,4671.8,4671.7,40.83393529]
[1757819996729,0.3018,4671.8,4671.7,36.17263529]
[1757819996930,1.1841,4671.8,4671.7,5.7105484]
[1757819997235,1.1841,4671.8,4671.6,3.57]
[1757819997447,0.8823,4671.7,4671.6,3.57]
[1757819997648,1.1821,4671.7,4671.3,0.001]
[1757819997973,1.1821,4671.7,4671.5,2.14063317]
[1757819998166,0.8823,4671.6,4671.5,2.14063317]
[1757819998480,1.1821,4671.6,4671.3,3.571]
[1757819998768,0.2998,4671.6,4671.5,2.14064005]
[1757819998969,0.2998,4671.6,4671.4,2.1406841]
[1757819999275,0.2998,4671.6,4671.5,2.14064005]
[1757819999774,0.2998,4671.6,4671.4,2.14067927]
[1757819999972,0.8823,4671.5,4671.3,5.71172833]
[1757820000145,1.1821,4671.4,4671.3,0.001]
[1757820001570,1.1821,4671.4,4671.3,2.1417317]
[1757820001782,1.1821,4671.4,4671.3,0.001]
[1757820007691,0.2998,4671.4,4671.3,2.16313901]
[1757820007891,0.4305,4671.6,4671.3,2.2481317]
[1757820008200,0.2998,4671.4,4671.3,2.2481317]
[1757820008490,0.4325,4671.8,4671.3,2.2481317]
[1757820008799,0.7303,4671.4,4671.3,2.2481317]
[1757820009389,0.7323,4671.4,4671.3,2.2481317]
[1757820011109,0.002,4671.4,4671.3,2.2481317]
[1757820011283,0.002,4671.4,4671.3,0.1074]
[1757820011896,0.4325,4671.4,4671.3,2.2481317]
[1757820012198,0.7323,4671.4,4671.3,0.1074]
[1757820012612,0.7323,4671.4,4671.3,2.2481317]
[1757820012914,1.1841,4671.4,4671.3,0.1074]
[1757820017124,1.1841,4671.4,4671.3,0.001]
[1757820017440,3.65745537,4671.4,4671.3,0.001]
[1757820020233,6.65745537,4671.4,4671.3,0.001]
[1757820020437,6.74312232,4671.4,4671.3,0.001]
[1757820020952,8.22725843,4671.4,4671.3,0.001]
[1757820022823,8.2271355,4671.4,4671.3,0.001]
[1757820024315,16.15752664,4671.4,4671.3,0.001]
[1757820024514,16.35650188,4671.4,4671.3,0.001]
[1757820024716,16.81509271,4671.4,4671.3,0.001]
[1757820027816,2.077,4671.1,4668.6,0.4523]
[1757820028018,2.14179009,4669.0,4668.6,0.4523]
[1757820028218,2.14179009,4669.0,4668.9,0.2877]
[1757820028442,3.572,4669.0,4668.9,0.2877]
[1757820031826,3.572,4669.0,4668.1,0.4863]
[1757820032026,3.572,4669.0,4668.1,2.62848051]
[1757820032230,3.572,4669.0,4668.1,0.7784]
[1757820032548,2.14183212,4668.9,4668.1,0.7784]
[1757820033035,3.572,4669.0,4668.2,2.16357414]
[1757820033213,3.572,4669.0,4668.8,0.3825]
[1757820033413,5.71379454,4669.0,4668.8,0.3825]
[1757820033617,3.572,4669.0,4668.8,0.3825]
[1757820034348,5.71378758,4669.0,4668.8,0.3825]
[1757820034751,3.572,4669.0,4668.8,0.3825]
[1757820038252,3.572,4669.0,4668.8,0.08]
[1757820039749,3.572,4669.0,4668.9,0.3025]
[1757820041238,3.6794,4669.0,4668.9,0.3025]
[1757820042258,0.1064,4669.0,4668.9,0.3025]
[1757820042473,3.6794,4669.0,4668.9,0.3025]
[1757820044160,3.9841,4669.0,4668.8,0.081]
[1757820044359,4.4457,4669.0,4668.8,0.081]
[1757820044544,3.6794,4669.0,4668.8,0.081]
[1757820044878,0.1064,4669.0,4668.8,0.081]
[1757820045075,3.573,4668.9,4668.8,0.081]
[1757820045250,3.573,4668.9,4668.8,0.3835]